bitfinex/quotes_SOLUSD_20260108
["timestamp","ask_amount","ask_price","bid_price","bid_amount"]
[1767844914954,3.53040184,136.87,136.83,0.69137465]
[1767844915155,7.30569503,136.88,136.82,13.34]
[1767844915156,3.9513344,136.86,136.82,13.34]
[1767844915337,3.9213344,136.86,136.82,13.34]
[1767844916156,3.4182541,136.83,136.8,0.2]
[1767844916345,3.4182541,136.82,136.77,0.69137465]
[1767844917146,10.7272716,136.82,136.77,8.00286278]
[1767844917347,11.04788429,136.82,136.77,8.00286278]
[1767844917559,0.31839656,136.8,136.76,7.31197715]
[1767844917739,3.73665066,136.8,136.75,0.69137465]
[1767844919040,10.82992397,136.79,136.75,0.69137465]
[1767844920253,3.73447864,136.78,136.73,21.34487064]
[1767844920452,7.31047591,136.79,136.72,21.90314653]
[1767844920453,3.52370588,136.75,136.72,0.2]
[1767844921157,0.10545178,136.75,136.72,0.2]
[1767844921354,11.05058119,136.77,136.72,8.20558337]
[1767844921555,11.05058119,136.77,136.73,0.69137465]
[1767844921556,3.73886679,136.77,136.73,0.69137465]
[1767844921758,3.4182541,136.78,136.73,0.69137465]
[1767844921943,3.73886679,136.79,136.75,0.66606075]
[1767844922260,7.63118918,136.79,136.75,0.66606075]
[1767844922453,11.04944328,136.79,136.75,0.66606075]
[1767844923863,10.72827505,136.8,136.76,0.7200981]
[1767844924165,10.82727505,136.8,136.76,0.7200981]
[1767844924545,10.82727505,136.8,136.75,8.03267917]
[1767844925039,18.59188315,136.83,136.77,0.7200981]
[1767844925264,10.72659291,136.83,136.78,0.7200981]
[1767844925656,10.82559291,136.83,136.78,0.7200981]
[1767844925854,3.73447864,136.8,136.76,11.5200981]
[1767844926058,3.73447864,136.8,136.76,0.7200981]
[1767844926655,3.4182541,136.8,136.76,0.7200981]
[1767844926965,3.4182541,136.79,136.75,0.7200981]
[1767844927670,10.72776433,136.81,136.76,0.7200981]
[1767844928664,10.72776433,136.81,136.77,0.7200981]
[1767844928665,7.30951023,136.81,136.77,0.7200981]
[1767844929065,10.72776433,136.81,136.77,0.7200981]
[1767844929459,10.82676433,136.81,136.77,0.7200981]
[1767844929764,3.4182541,136.8,136.76,0.7200981]
[1767844930352,3.4182541,136.8,136.77,10.8]
[1767844931167,10.72850149,136.8,136.77,10.8]
[1767844933068,3.5172541,136.81,136.77,10.8]
[1767844933558,7.30833881,136.83,136.78,4.1383522]
[1767844933750,31.61002424,136.84,136.8,0.7200981]
[1767844933751,24.06614923,136.84,136.8,0.7200981]
[1767844933953,13.34,136.84,136.8,0.7200981]
[1767844934156,20.74906288,136.84,136.78,0.7200981]
[1767844934369,3.4182541,136.83,136.78,0.7200981]
[1767844934677,20.74906288,136.84,136.79,0.7200981]
[1767844934678,22.9399508,136.84,136.79,0.7200981]
[1767844935070,20.74906288,136.84,136.79,0.7200981]
[1767844935271,2.19088792,136.83,136.79,0.7200981]
[1767844936745,9.49947423,136.83,136.79,0.7200981]
[1767844938462,20.64799887,136.84,136.8,0.7200981]
[1767844938663,22.83888679,136.84,136.8,0.7200981]
[1767844939755,20.64799887,136.84,136.8,0.7200981]
[1767844940070,23.15728335,136.84,136.8,0.7200981]
[1767844940472,23.15728335,136.84,136.81,10.8]
[1767844940669,23.15728335,136.84,136.8,0.7200981]
[1767844942882,20.96639543,136.84,136.8,0.7200981]
[1767844943060,23.15728335,136.84,136.8,0.7200981]
[1767844943681,2.51150061,136.86,136.81,0.7200981]
[1767844943880,0.32061269,136.86,136.82,0.7200981]
[1767844944186,136.89603979,136.87,136.82,0.7200981]
[1767844944489,2.50928448,136.86,136.82,0.7200981]
[1767844944668,9.49849114,136.85,136.82,0.7200981]
[1767844944865,9.49849114,136.85,136.81,0.7200981]
[1767844945270,7.30760322,136.85,136.81,0.7200981]
[1767844945880,9.49849114,136.85,136.82,10.8]
[1767844946173,9.49849114,136.85,136.81,0.7200981]
[1767844946891,9.81620642,136.86,136.81,8.0293946]
[1767844947085,9.81620642,136.86,136.82,0.7200981]
[1767844948074,2.29208188,136.85,136.8,8.02981782]
[1767844948477,2.29208188,136.85,136.81,0.7200981]
[1767844949177,2.19088792,136.85,136.81,0.7200981]
[1767844949380,7.62753463,136.86,136.81,0.7200981]
[1767844949587,2.19088792,136.85,136.81,0.7200981]
[1767844950496,2.19088792,136.85,136.82,10.8]
[1767844950896,9.49823074,136.85,136.81,0.7200981]
[1767844951385,9.81848201,136.86,136.82,0.7200981]
[1767844952689,7.62759409,136.86,136.82,0.7200981]
[1767844952981,2.19088792,136.85,136.82,0.7200981]
[1767844954588,9.81848201,136.86,136.82,0.7200981]
[1767844954980,9.49786932,136.86,136.82,0.7200981]
[1767844955592,9.81626588,136.86,136.82,11.5200981]
[1767844955993,7.23937796,136.86,136.82,11.5200981]
[1767844956176,23.15790462,136.87,136.83,0.66251747]
[1767844957479,2.51150061,136.89,136.84,0.66251747]
[1767844957676,9.81686742,136.89,136.84,0.66251747]
[1767844958077,9.49625473,136.89,136.84,0.66251747]
[1767844958898,22.93465063,136.9,136.85,0.66251747]
[1767844960380,2.29208188,136.88,136.83,0.66251747]
[1767844960586,2.29208188,136.88,136.86,10.8]
[1767844960783,2.29208188,136.88,136.86,10.68000012]
[1767844961207,2.19088792,136.88,136.86,10.68000012]
[1767844961698,2.19088792,136.88,136.85,0.66251747]
[1767844962676,0.32061269,136.89,136.85,0.66251747]
[1767844962997,9.81710586,136.89,136.85,0.66251747]
[1767844964383,9.81710586,136.89,136.85,7.9697505]
[1767844964384,9.49649317,136.89,136.85,7.9697505]
[1767844964595,9.49527595,136.91,136.86,0.66251747]
[1767844964892,23.15509421,136.92,136.87,0.66251747]
[1767844965087,9.81509421,136.92,136.87,0.66251747]
[1767844965301,2.19088792,136.91,136.87,0.66251747]
[1767844965604,2.19088792,136.9,136.88,10.8]
[1767844966098,2.19088792,136.91,136.88,0.66251747]
[1767844966905,9.49497804,136.91,136.88,0.66251747]
[1767844970100,2.50928448,136.9,136.86,0.66251747]
[1767844970404,2.19088792,136.9,136.86,0.66251747]
[1767844971289,9.49556248,136.9,136.86,0.66251747]
[1767844972103,9.49516833,136.91,136.87,0.66251747]
[1767844974090,7.30428041,136.91,136.87,0.66251747]
[1767844974288,9.49516833,136.91,136.87,0.66251747]
[1767844974906,0.31622454,136.88,136.85,0.66251747]
[1767844975109,2.19088792,136.86,136.84,0.66251747]
[1767844979112,9.49724296,136.87,136.84,0.66251747]
[1767844980517,9.49724296,136.87,136.84,11.46251747]
[1767844980817,9.49724296,136.87,136.84,0.66251747]
[1767844981118,7.62213384,136.88,136.84,0.66251747]
[1767844981297,2.19088792,136.87,136.84,0.66251747]
[1767844982615,9.49724757,136.87,136.84,0.66251747]
[1767844983094,9.49672482,136.88,136.84,0.66251747]
[1767844983610,20.64535995,136.89,136.85,0.68128612]
[1767844983922,7.30477669,136.9,136.85,0.68128612]
[1767844984218,9.49566461,136.9,136.85,0.68128612]
[1767844984594,9.49566461,136.9,136.86,0.68128612]
[1767844985315,2.19088792,136.9,136.86,0.68128612]
[1767844985616,2.19088792,136.9,136.87,0.68128612]
[1767844986615,2.19088792,136.9,136.87,0.62128612]
[1767844988117,20.9648302,136.91,136.87,0.62128612]
[1767844988321,2.19088792,136.9,136.87,0.62128612]
[1767844989220,0.1584,136.9,136.87,0.62128612]
[1767844989418,0.11899056,136.87,136.82,0.68128612]
[1767844989624,2.19088792,136.85,136.82,0.68128612]
[1767844991528,13.439,136.88,136.82,7.98969003]
[1767844991719,15.53088792,136.88,136.83,0.68128612]
[1767844993025,15.53088792,136.88,136.83,7.98924104]
[1767844993224,15.53088792,136.88,136.84,0.68128612]
[1767844993722,2.19088792,136.85,136.82,0.68128612]
[1767844995918,2.19088792,136.86,136.83,0.68128612]
[1767844996513,3.42189467,136.86,136.83,0.68128612]
[1767845001029,10.72866138,136.86,136.83,0.68128612]
[1767845001427,3.42189467,136.85,136.83,0.68128612]
[1767845001623,3.42189467,136.85,136.81,0.68128612]
[1767845002015,3.54068532,136.85,136.81,7.99037459]
[1767845002731,3.42189467,136.85,136.82,7.99009585]
[1767845003331,3.54088523,136.86,136.82,7.99009585]
[1767845004528,10.84771843,136.86,136.83,0.68128612]
[1767845007835,3.54088523,136.86,136.83,0.68128612]
[1767845008135,10.84768266,136.86,136.83,0.68128612]
[1767845009634,0.09919791,136.83,136.79,0.68128612]
[1767845009838,0.09919791,136.83,136.72,0.2]
[1767845009839,3.54048939,136.82,136.78,0.68128612]
[1767845011018,10.84985859,136.82,136.78,0.68128612]
[1767845013648,10.73126387,136.82,136.78,0.68128612]
[1767845016130,10.83026387,136.82,136.78,0.68128612]
[1767845020153,3.52089467,136.82,136.78,0.68128612]
[1767845021249,10.83004966,136.82,136.78,0.68128612]
[1767845021550,0.11859472,136.79,136.76,0.67726205]
[1767845021726,3.42189467,136.8,136.77,0.67726205]
[1767845022127,3.42189467,136.81,136.77,0.67726205]
[1767845022954,3.42189467,136.8,136.77,0.67726205]
[1767845023141,3.42189467,136.81,136.77,0.67726205]
[1767845023346,10.73163574,136.81,136.77,0.67726205]
[1767845023744,0.08899057,136.83,136.78,0.67726205]
[1767845024053,3.42189467,136.82,136.78,0.67726205]
[1767845024836,3.42189467,136.81,136.78,0.67726205]
[1767845025436,7.30922497,136.82,136.78,0.67726205]
[1767845025652,3.42189467,136.81,136.78,0.67726205]
[1767845026458,3.51088524,136.81,136.77,0.67726205]
[1767845026654,3.51088524,136.79,136.73,0.67726205]
[1767845026853,3.51088524,136.79,136.75,0.67726205]
[1767845026854,3.42189467,136.78,136.75,0.67726205]
[1767845027152,7.39980896,136.79,136.75,0.67726205]
[1767845027355,10.73271306,136.79,136.75,0.67726205]
[1767845027651,10.82170363,136.79,136.75,0.67726205]
[1767845030060,3.42189467,136.78,136.75,0.67726205]
[1767845031161,10.73314037,136.78,136.75,0.67726205]
[1767845033865,0.08899057,136.78,136.74,0.67726205]
[1767845034070,3.42189467,136.77,136.74,0.67726205]
[1767845034769,0.08899057,136.78,136.74,0.67726205]
[1767845035076,7.40044366,136.78,136.74,0.67726205]
[1767845035246,3.42189467,136.77,136.74,0.67726205]
[1767845037255,0.08899057,136.78,136.74,0.67726205]
[1767845037553,3.42189467,136.77,136.74,0.67726205]
[1767845039284,10.73352475,136.77,136.74,0.67726205]
[1767845039567,7.40022586,136.78,136.74,0.67726205]
[1767845039769,3.42189467,136.77,136.74,0.67726205]
[1767845041650,31.61244103,136.82,136.77,0.67726205]
[1767845041966,3.42189467,136.81,136.77,0.67726205]
[1767845042164,3.51088524,136.81,136.77,0.67726205]
[1767845042564,10.82049962,136.81,136.77,0.67726205]
[1767845043671,10.73150905,136.81,136.77,0.67726205]
[1767845044450,10.82049962,136.81,136.77,0.67726205]
[1767845045148,3.42189467,136.8,136.77,0.67726205]
[1767845045366,3.42189467,136.78,136.75,0.66671981]
[1767845045774,3.51088524,136.79,136.75,0.66671981]
[1767845046073,3.42189467,136.79,136.75,0.66671981]
[1767845046769,3.51088524,136.78,136.74,0.66671981]
[1767845046955,3.42189467,136.77,136.74,0.66671981]
[1767845047975,10.73344084,136.77,136.74,0.66671981]
[1767845048374,7.31154617,136.77,136.74,0.66671981]
[1767845051174,3.42189467,136.78,136.74,7.97984662]
[1767845051474,13.34,136.79,136.75,0.66671981]
[1767845051862,13.34,136.79,136.76,0.66671981]
[1767845052374,20.65049754,136.79,136.76,0.66671981]
[1767845053356,13.34,136.79,136.76,0.66671981]
[1767845053580,7.31006037,136.8,136.76,0.66671981]
[1767845054166,3.51088524,136.79,136.75,0.66671981]
[1767845054369,3.42189467,136.79,136.75,0.66671981]
[1767845055279,0.08899057,136.78,136.75,0.66671981]
[1767845055582,3.51088524,136.78,136.75,0.66671981]
[1767845055963,3.42189467,136.78,136.75,0.66671981]
[1767845056575,2.19247214,136.78,136.75,0.66671981]
[1767845057084,9.50367069,136.78,136.75,0.66671981]
[1767845059284,9.59266126,136.78,136.75,0.66671981]
[1767845059471,7.40018912,136.78,136.75,0.66671981]
[1767845059669,9.59266126,136.78,136.75,0.66671981]
[1767845060484,9.59266126,136.78,136.74,0.66671981]
[1767845062995,0.08899057,136.77,136.74,0.66671981]
[1767845063882,9.59266126,136.78,136.74,0.66671981]
[1767845065185,2.28146271,136.76,136.72,0.86671981]
[1767845065489,7.14963082,136.77,136.73,0.66671981]
[1767845065804,7.31207955,136.76,136.73,0.66671981]
[1767845067191,9.50455169,136.76,136.73,0.66671981]
[1767845067364,9.59354226,136.76,136.72,0.86671981]
[1767845068372,0.08899057,136.75,136.72,0.86671981]
[1767845069272,0.08899057,136.75,136.72,0.2]
[1767845069686,0.08899057,136.75,136.72,0.86671981]
[1767845069989,9.50490549,136.76,136.73,0.66671981]
[1767845070590,0.08899057,136.75,136.72,0.2]
[1767845070786,9.50490549,136.76,136.73,0.66671981]
[1767845072290,2.19247214,136.75,136.73,0.66671981]
[1767845072789,2.19247214,136.76,136.73,0.66671981]
[1767845072990,2.19247214,136.82,136.76,0.66205131]
[1767845073319,2.19247214,136.81,136.77,0.66205131]
[1767845073474,0.08899057,136.81,136.76,2.85452345]
[1767845073894,0.08899057,136.81,136.77,0.66205131]
[1767845074592,0.08899057,136.81,136.77,7.31153759]
[1767845075282,9.50146392,136.82,136.78,0.66205131]
[1767845075488,9.50146392,136.82,136.77,7.31153759]
[1767845075489,0.08899057,136.81,136.77,7.31153759]
[1767845075892,9.59045449,136.82,136.78,0.66205131]
[1767845077490,9.59045449,136.82,136.78,11.46205131]
[1767845078894,27.86263691,136.82,136.78,11.46205131]
[1767845079074,0.08899057,136.81,136.78,11.46205131]
[1767845084906,27.86263691,136.82,136.79,0.66205131]
[1767845085083,25.67016477,136.82,136.78,11.46205131]
[1767845085406,27.86263691,136.82,136.78,11.46205131]
[1767845085605,25.67016477,136.82,136.78,11.46205131]
[1767845087810,18.36117299,136.82,136.78,11.46205131]
[1767845090113,25.67004596,136.82,136.78,11.46205131]
[1767845090286,7.30887297,136.82,136.79,0.66205131]
[1767845092110,7.39732938,136.83,136.79,0.66205131]
[1767845093711,9.58980152,136.83,136.79,0.66205131]
[1767845094807,2.28146271,136.82,136.79,0.66205131]
[1767845095797,2.19247214,136.82,136.79,0.66205131]
[1767845096694,7.3094072,136.81,136.79,0.66205131]
[1767845099318,18.3598376,136.83,136.79,0.66205131]
[1767845099611,33.89230974,136.83,136.79,0.66205131]
[1767845101518,22.92980152,136.83,136.79,0.66205131]
[1767845103819,20.73732938,136.83,136.79,0.66205131]
[1767845104520,13.34,136.83,136.8,0.67010719]
[1767845104815,2.28146271,136.83,136.8,0.67010719]
[1767845105019,2.28146271,136.83,136.79,11.47010719]
[1767845105318,2.28146271,136.82,136.79,0.67010719]
[1767845106015,15.53247214,136.83,136.79,0.67010719]
[1767845106219,13.34,136.83,136.79,0.67010719]
[1767845106905,20.64846177,136.83,136.79,0.67010719]
[1767845107502,7.30846177,136.83,136.79,0.67010719]
[1767845108007,25.66630713,136.84,136.79,0.67010719]
[1767845108208,27.85877927,136.84,136.79,0.67010719]
[1767845109618,9.58926744,136.84,136.8,11.47010719]
[1767845109823,7.3967953,136.84,136.8,11.47010719]
[1767845110128,7.30780473,136.84,136.8,0.67010719]
[1767845110724,36.95825024,136.87,136.82,0.67010719]
[1767845110725,13.42899057,136.87,136.82,0.67010719]
[1767845110925,13.34,136.87,136.82,0.67010719]
[1767845111226,15.62146271,136.87,136.82,0.67010719]
[1767845112216,22.92784769,136.87,136.82,7.97886651]
[1767845112416,20.73537555,136.87,136.83,0.67010719]
[1767845112724,22.92784769,136.87,136.83,0.67010719]
[1767845114009,20.64638498,136.87,136.83,0.67010719]
[1767845114725,7.30638498,136.87,136.84,0.67010719]
[1767845115909,9.49885712,136.87,136.84,0.67010719]
[1767845116118,2.28146271,136.86,136.83,0.67010719]
[1767845116315,2.28146271,136.85,136.81,0.67010719]
[1767845116514,3.42276383,136.84,136.81,0.67010719]
[1767845116733,3.5117544,136.84,136.81,0.67010719]
[1767845117808,7.30833881,136.83,136.81,0.67010719]
[1767845119433,7.27833882,136.83,136.81,0.67010719]
[1767845119735,7.27833882,136.83,136.81,1.57010719]
[1767845120635,7.30803042,136.84,136.81,1.57010719]
[1767845121020,13.42899057,136.85,136.81,0.9]
[1767845121021,20.64750663,136.85,136.81,0.9]
[1767845121223,7.30750663,136.85,136.81,0.9]
[1767845122528,10.81872743,136.86,136.81,8.20938787]
[1767845122920,7.3959636,136.86,136.81,8.20938787]
[1767845123120,7.3959636,136.86,136.82,0.67010719]
[1767845124022,7.3959636,136.86,136.83,0.67010719]
[1767845124023,0.08899057,136.86,136.83,0.67010719]
[1767845124218,21.30227441,136.87,136.83,0.67010719]
[1767845124434,20.64645073,136.87,136.83,0.67010719]
[1767845124640,11.38443064,136.88,136.83,0.67010719]
[1767845125424,7.30584313,136.88,136.84,0.67010719]
[1767845126247,10.92984829,136.88,136.84,0.67010719]
[1767845127728,0.65127786,136.87,136.84,0.67010719]
[1767845129519,7.96166681,136.88,136.84,0.67010719]
[1767845133555,21.30753426,136.89,136.85,0.67782119]
[1767845135857,107.08508979,136.91,136.86,0.67782119]
[1767845136056,107.08508979,136.91,136.85,11.40777035]
[1767845136057,0.19480408,136.9,136.85,11.40777035]
[1767845136262,0.19480408,136.9,136.86,0.67782119]
[1767845136758,117.00232596,136.91,136.87,0.67782119]
[1767845137051,124.30669798,136.91,136.87,0.67782119]
[1767845137449,0.19480408,136.9,136.87,0.67782119]
[1767845138761,7.49944527,136.9,136.87,0.67782119]
[1767845139137,7.49944527,136.9,136.87,0.61782119]
[1767845139338,7.49944527,136.9,136.86,3.42276383]
[1767845140351,7.49944527,136.9,136.85,7.30718533]
[1767845140352,0.66232596,136.89,136.84,10.73033151]
[1767845140659,7.96747108,136.89,136.84,10.73033151]
[1767845141158,7.96747108,136.89,136.85,0.67782119]
[1767845143259,7.30474983,136.9,136.86,0.67782119]
[1767845143654,7.55895391,136.9,136.86,0.67782119]
[1767845144252,11.38642947,136.89,136.86,0.67782119]
[1767845144458,7.3054209,136.89,136.86,0.61782119]
[1767845144854,7.3054209,136.89,136.86,0.55782119]
[1767845145446,7.96713815,136.9,136.86,0.55782119]
[1767845146165,0.65943274,136.88,136.81,19.17295802]
[1767845146361,0.65943274,136.88,136.82,3.42276383]
[1767845146362,7.68207132,136.87,136.82,3.42276383]
[1767845146739,0.6565971,136.86,136.82,0.67782119]
[1767845146944,0.6565971,136.86,136.81,7.98699564]
[1767845147138,4.07936093,136.86,136.82,0.67782119]
[1767845147363,0.37867565,136.85,136.81,0.67782119]
[1767845148457,7.68615489,136.85,136.81,0.67782119]
[1767845148661,0.37867565,136.85,136.81,0.67782119]
[1767845149855,0.65381788,136.84,136.8,0.67782119]
[1767845150671,7.96172754,136.84,136.8,0.67782119]
[1767845151169,0.38142708,136.83,136.78,4.10058502]
[1767845151366,0.65109397,136.82,136.78,0.67782119]
[1767845152261,4.0738578,136.82,136.78,0.67782119]
[1767845152570,7.3094072,136.81,136.78,0.67782119]
[1767845160479,4.08508979,136.85,136.8,0.67782119]
[1767845160675,0.66232596,136.85,136.81,0.67782119]
[1767845161263,7.96994868,136.85,136.81,0.67782119]
[1767845161466,7.96994868,136.85,136.82,0.67782119]
[1767845161663,7.96994868,136.85,136.82,0.61782119]
[1767845164065,7.30620296,136.87,136.82,0.61782119]
[1767845164265,7.30620296,136.87,136.83,0.69400204]
[1767845164466,7.76443572,136.87,136.83,0.63400204]
[1767845166978,20.64590215,136.88,136.84,0.69400204]
[1767845167178,21.16353491,136.88,136.84,0.63400204]
[1767845168185,3.94216476,136.86,136.8,10.73222452]
[1767845168478,0.69269986,136.85,136.8,10.73222452]
[1767845169076,8.00005006,136.85,136.81,0.69400204]
[1767845169881,8.00005006,136.85,136.82,11.49400204]
[1767845170384,8.00005006,136.85,136.81,0.69400204]
[1767845170788,0.52113392,136.84,136.81,0.69400204]
[1767845172483,7.82926531,136.84,136.81,0.69400204]
[1767845172888,0.6909842,136.83,136.8,0.69400204]
[1767845174069,0.52283242,136.82,136.77,0.69400204]
[1767845174267,0.68930268,136.81,136.77,0.69400204]
[1767845174868,0.68930268,136.81,136.78,11.49400204]
[1767845175588,7.30994152,136.8,136.78,0.69400204]
[1767845178672,7.30994152,136.8,136.77,0.69400204]
[1767845179892,7.3094072,136.81,136.78,1.59400204]
[1767845186392,7.30901257,136.82,136.79,0.69400204]
[1767845186597,16.22754024,136.83,136.79,0.69400204]
[1767845187486,7.82651059,136.82,136.79,0.69400204]
[1767845196379,18.27032141,136.84,136.79,0.69400204]
[1767845196380,26.25235322,136.84,136.79,0.69400204]
[1767845196580,28.44365708,136.84,136.79,0.69400204]
[1767845196802,7.98203181,136.84,136.8,0.70069878]
[1767845197301,7.30780473,136.84,136.8,0.70069878]
[1767845199390,7.8472267,136.84,136.8,0.70069878]
[1767845199702,10.03853056,136.84,136.8,0.70069878]
[1767845200083,7.8472267,136.84,136.8,0.70069878]
[1767845203301,7.30780473,136.84,136.8,0.70069878]
[1767845204298,7.8472267,136.84,136.8,0.70069878]
[1767845204479,7.8472267,136.84,136.81,0.70069878]
[1767845205005,0.53942197,136.84,136.81,0.70069878]
[1767845206599,7.98172886,136.85,136.81,0.70069878]
[1767845209993,0.53942197,136.84,136.81,0.70069878]
[1767845214789,7.30750178,136.85,136.81,0.70069878]
[1767845214790,7.98172886,136.85,136.81,0.70069878]
[1767845216114,0.53942197,136.84,136.81,0.70069878]
[1767845220723,7.84729863,136.84,136.81,0.70069878]
[1767845221314,2.19130386,136.86,136.81,0.70069878]
[1767845221527,0.67422708,136.85,136.81,0.70069878]
[1767845221900,7.98159019,136.85,136.81,0.70069878]
[1767845222423,169.51402454,136.91,136.84,0.67118019]
[1767845222424,18.95813182,136.89,136.84,0.67118019]
[1767845222730,7.99999499,136.89,136.84,2.19130386]
[1767845223433,7.99999499,136.89,136.83,9.49964267]
[1767845224208,0.60587858,136.88,136.83,9.49964267]
[1767845224723,0.60587858,136.88,136.85,0.70053269]
[1767845224930,0.60587858,136.88,136.85,0.64053269]
[1767845229821,0.72375914,136.87,136.83,0.70053269]
[1767845231023,0.72375914,136.87,136.82,16.23183655]
[1767845231207,0.72375914,136.87,136.83,0.70053269]
[1767845232104,8.03032227,136.87,136.83,0.70053269]
[1767845232506,0.63643832,136.86,136.83,0.70053269]
[1767845232729,0.72288593,136.85,136.81,0.70053269]
[1767845234523,0.72288593,136.85,136.82,0.70053269]
[1767845234742,0.63730279,136.84,136.8,9.5010301]
[1767845234945,0.63730279,136.84,136.81,9.5006694]
[1767845235146,0.63730279,136.84,136.81,2.19130386]
[1767845235641,0.63730279,136.84,136.8,10.20155048]
[1767845235964,0.63730279,136.84,136.8,9.50101779]
[1767845237854,0.7220301,136.83,136.79,9.50175119]
[1767845238343,0.63815006,136.82,136.77,9.50255574]
[1767845238653,0.63815006,136.82,136.77,10.73438361]
[1767845238854,0.63815006,136.82,136.77,11.4349163]
[1767845239334,0.7211913,136.81,136.77,11.4349163]
[1767845240351,8.03272664,136.82,136.78,0.70053269]
[1767845242362,8.03272664,136.82,136.79,0.70053269]
[1767845242543,0.72375914,136.82,136.79,0.70053269]
[1767845244863,8.03267914,136.82,136.79,0.70053269]
[1767845245550,0.72375914,136.82,136.79,0.70053269]
[1767845245939,13.34,136.84,136.81,0.70053269]
[1767845247860,13.97643832,136.84,136.81,0.70053269]
[1767845249058,21.28424905,136.84,136.81,0.70053269]
[1767845250066,13.97643832,136.84,136.81,0.70053269]
[1767845252465,0.63643832,136.84,136.81,0.70053269]
[1767845253070,7.94429041,136.84,136.81,0.70053269]
[1767845253872,0.69603488,136.83,136.8,0.67445713]
[1767845258865,0.69603488,136.83,136.8,7.98434293]
[1767845259576,0.69603488,136.83,136.8,0.67445713]
[1767845264155,0.69571339,136.81,136.77,0.67445713]
[1767845264479,7.30793663,136.84,136.79,0.67445713]
[1767845265370,25.57744846,136.84,136.79,0.67445713]
[1767845266364,7.94305831,136.82,136.79,0.67445713]
[1767845267586,8.0045759,136.83,136.8,0.67445713]
[1767845269716,0.63418534,136.82,136.79,0.67445713]
[1767845276307,7.94308174,136.82,136.79,0.67445713]
[1767845281210,0.69541639,136.81,136.78,0.67445713]
[1767845281393,0.69541639,136.81,136.77,7.98594637]
[1767845281592,0.69541639,136.81,136.78,0.67445713]
[1767845281795,5.57360149,136.82,136.78,0.67445713]
[1767845282615,12.8825999,136.82,136.78,0.67445713]
[1767845282808,8.00503329,136.82,136.78,0.67445713]
[1767845283020,8.00503329,136.82,136.79,0.6783063]
[1767845284315,5.51156887,136.81,136.76,17.44143803]
[1767845284616,0.67927526,136.8,136.76,0.6783063]
[1767845285211,0.67927526,136.8,136.77,0.6783063]
[1767845285405,7.98948528,136.8,136.77,0.6783063]
[1767845288113,0.65077737,136.79,136.75,4.10143803]
[1767845288705,0.65077737,136.79,136.76,0.6783063]
[1767845289315,7.96139464,136.79,136.76,4.10143803]
[1767845289992,7.96139464,136.79,136.76,0.6783063]
[1767845291302,7.99039128,136.78,136.75,0.67676834]
[1767845291921,0.6510595,136.77,136.74,0.67676834]
[1767845293218,0.6510595,136.77,136.74,4.09990007]
[1767845293415,14.0577702,136.8,136.76,0.67676834]
[1767845293996,0.61266738,136.79,136.76,0.67676834]
[1767845294805,7.92314329,136.79,136.76,0.67676834]
[1767845295105,0.71671917,136.78,136.75,4.09990007]
[1767845295313,8.02824611,136.79,136.76,4.09990007]
[1767845295516,8.02824611,136.79,136.76,0.67676834]
[1767845297724,8.02824611,136.79,136.75,0.67676834]
[1767845297725,0.61266738,136.78,136.75,0.67676834]
[1767845298032,8.02824611,136.79,136.76,0.67676834]
[1767845299322,8.02824611,136.79,136.74,10.73602742]
[1767845299507,0.71671917,136.77,136.73,0.67676834]
[1767845299820,0.71671917,136.77,136.72,0.87676834]
[1767845299821,0.6137079,136.76,136.72,0.87676834]
[1767845300326,0.6137079,136.76,136.73,0.67676834]
[1767845302104,7.31261425,136.75,136.73,0.67676834]
[1767845302423,7.31261425,136.75,136.72,2.39284457]
[1767845302424,8.0283033,136.75,136.72,0.87676834]
[1767845305322,8.0283033,136.75,136.72,3.06961291]
[1767845305523,0.71568905,136.75,136.72,3.06961291]
[1767845306512,0.71568905,136.75,136.72,0.87676834]
[1767845306713,8.02833034,136.75,136.72,0.87676834]
[1767845308127,0.61472771,136.74,136.72,0.2]
[1767845308435,7.92796646,136.74,136.72,0.2]
[1767845310536,0.71467944,136.73,136.7,0.87676834]
[1767845310752,0.68467945,136.73,136.7,0.87676834]
[1767845311446,7.31323875,136.74,136.7,0.87676834]
[1767845312017,7.31261425,136.75,136.7,3.06961291]
[1767845312717,0.67035141,136.74,136.7,3.06961291]
[1767845313342,0.67035141,136.74,136.71,0.65838909]
[1767845315141,7.98391841,136.74,136.71,0.65838909]
[1767845315638,7.98391841,136.74,136.7,0.85838909]
[1767845315843,0.43191199,136.73,136.7,0.85838909]
[1767845316222,0.43191199,136.73,136.7,0.2]
[1767845316223,0.66796701,136.72,136.7,0.2]
[1767845316420,0.63796702,136.72,136.7,0.2]
[1767845317652,2.19284457,136.71,136.67,0.85838909]
[1767845317822,2.19284457,136.7,136.67,0.2]
[1767845318023,13.36,136.72,136.66,0.2]
[1767845318024,2.19284457,136.69,136.66,0.2]
[1767845318228,7.31635937,136.68,136.66,0.2]
[1767845318416,0.402212,136.67,136.66,1e-08]
[1767845319922,7.31635937,136.68,136.65,0.6583891]
[1767845320526,7.98140135,136.68,136.65,0.6583891]
[1767845320724,7.98140135,136.68,136.65,1e-08]
[1767845321350,9.50920394,136.68,136.65,0.6583891]
[1767845322128,9.91141594,136.68,136.65,0.6583891]